bitfinex/quotes_SOLUSD_20230102
["timestamp","ask_amount","ask_price","bid_price","bid_amount"]
[1672628583113,96.08735817,9.943,9.9372,55.93367745]
[1672628583323,96.08735817,9.943,9.9373,20.0]
[1672628583738,96.08735817,9.943,9.9374,55.93367745]
[1672628583955,96.08735817,9.943,9.9375,20.0]
[1672628584386,96.08735817,9.943,9.9376,55.93367745]
[1672628584581,96.08735817,9.943,9.9377,20.0]
[1672628585012,96.08735817,9.943,9.9378,55.93367745]
[1672628585224,96.08735817,9.943,9.9379,20.0]
[1672628589000,30.0,9.9429,9.9379,20.0]
[1672628589318,30.0,9.9446,9.9379,20.0]
[1672628589523,96.08735817,9.9429,9.9379,20.0]
[1672628589963,96.08735817,9.9429,9.9379,75.93367745]
[1672628590578,30.0,9.9428,9.9379,75.93367745]
[1672628591102,126.08735817,9.9428,9.9379,75.93367745]
[1672628591526,30.0,9.9427,9.9379,75.93367745]
[1672628591945,126.08735817,9.9427,9.9379,75.93367745]
[1672628595005,126.08735817,9.9427,9.9265,75.57385584]
[1672628595220,5.76,9.94,9.9301,24.4986]
[1672628595429,122.8951,9.9399,9.9301,24.4986]
[1672628595629,30.0,9.9398,9.9302,63.88132987]
[1672628595846,75.59,9.9397,9.9302,63.88132987]
[1672628596045,30.0,9.9396,9.9302,63.88132987]
[1672628596255,30.0,9.9394,9.9303,20.0]
[1672628596467,30.0,9.9392,9.9303,20.0]
[1672628596679,75.6,9.9391,9.9303,20.0]
[1672628596888,30.0,9.939,9.9303,20.0]
[1672628597104,30.0,9.9388,9.9303,20.0]
[1672628597413,30.0,9.9386,9.9303,20.0]
[1672628597623,30.0,9.9384,9.9303,20.0]
[1672628597853,75.6,9.9383,9.9303,20.0]
[1672628598060,30.0,9.9382,9.9304,63.88132987]
[1672628598269,30.0,9.938,9.9305,20.0]
[1672628598696,30.0,9.9378,9.9306,63.88132987]
[1672628598902,75.61,9.9377,9.9307,20.0]
[1672628599325,23.9174,9.938,9.9308,93.88132987]
[1672628599542,23.9174,9.938,9.9309,20.0]
[1672628599749,23.9174,9.938,9.9309,99.68863773]
[1672628599962,23.9174,9.938,9.931,79.68863773]
[1672628600166,30.0,9.9379,9.9311,20.0]
[1672628600381,30.0,9.9379,9.9311,99.68863773]
[1672628600697,30.0,9.9379,9.9312,79.68863773]
[1672628600902,30.0,9.9379,9.9313,20.0]
[1672628601116,30.0,9.9379,9.9313,99.68863773]
[1672628601314,30.0,9.9379,9.9314,79.68863773]
[1672628601529,30.0,9.9379,9.9315,20.0]
[1672628602388,23.9174,9.938,9.9316,45.80730786]
[1672628602580,23.9174,9.938,9.9317,20.0]
[1672628604803,23.9174,9.938,9.9316,20.0]
[1672628605017,23.9174,9.938,9.9318,79.68863773]
[1672628605326,23.9174,9.938,9.932,30.0]
[1672628605547,23.9174,9.938,9.9321,20.0]
[1672628605734,23.9174,9.938,9.9322,30.0]
[1672628605947,23.9174,9.938,9.9323,20.0]
[1672628606154,23.9174,9.938,9.9324,30.0]
[1672628606364,23.9174,9.938,9.9326,30.0]
[1672628606575,23.9174,9.938,9.9327,20.0]
[1672628606795,23.9174,9.938,9.9328,30.0]
[1672628607001,23.9174,9.938,9.9328,45.80730786]
[1672628607208,23.9174,9.938,9.9329,20.0]
[1672628607408,23.9174,9.938,9.933,30.0]
[1672628607621,23.9174,9.938,9.933,86.34641914]
[1672628607833,23.9174,9.938,9.9332,30.0]
[1672628608258,23.9174,9.938,9.9334,30.0]
[1672628608581,23.9174,9.938,9.9336,30.0]
[1672628608797,23.9174,9.938,9.9338,30.0]
[1672628609202,23.9174,9.938,9.934,30.0]
[1672628609411,23.9174,9.938,9.9342,30.0]
[1672628609628,23.9174,9.938,9.9343,20.0]
[1672628609846,23.9174,9.938,9.9344,30.0]
[1672628610249,23.9174,9.938,9.9345,20.0]
[1672628610897,30.0,9.9416,9.9345,20.0]
[1672628611084,30.0,9.9414,9.9345,20.0]
[1672628611734,23.453,9.9413,9.9345,20.0]
[1672628612472,23.453,9.9412,9.9345,20.0]
[1672628613090,23.453,9.9412,9.9346,30.0]
[1672628613309,23.453,9.9411,9.9347,20.0]
[1672628613828,24.6116,9.941,9.9347,20.0]
[1672628614766,24.6116,9.9409,9.9347,20.0]
[1672628615512,30.0,9.9407,9.9342,20.0]
[1672628615724,30.0,9.9405,9.9342,20.0]
[1672628615927,24.6116,9.9406,9.9342,20.0]
[1672628622228,24.6116,9.9406,9.9343,30.0]
[1672628622441,24.6116,9.9406,9.9344,20.0]
[1672628635584,24.6116,9.9406,9.9345,30.0]
[1672628635797,24.6116,9.9406,9.9347,30.0]
[1672628636433,24.6116,9.9406,9.9348,20.0]
[1672628642836,24.6116,9.9406,9.9346,20.0]
[1672628643046,24.6116,9.9406,9.9344,20.0]
[1672628644321,24.6116,9.9406,9.9345,30.0]
[1672628644531,24.6116,9.9406,9.9346,20.0]
[1672628646954,24.6116,9.9406,9.9347,30.0]
[1672628647264,24.6116,9.9406,9.9349,30.0]
[1672628647478,24.6116,9.9406,9.9351,30.0]
[1672628647676,24.6116,9.9406,9.9352,20.0]
[1672628647887,24.6116,9.9406,9.9353,30.0]
[1672628648204,24.6116,9.9406,9.9354,20.0]
[1672628649681,24.6116,9.9406,9.9355,30.0]
[1672628650305,24.6116,9.9406,9.9354,20.0]
[1672628652949,24.6116,9.9406,9.9355,30.0]
[1672628654095,24.6116,9.9406,9.9354,20.0]
[1672628654825,24.6116,9.9406,9.9352,20.0]
[1672628655882,24.6116,9.9406,9.9353,30.0]
[1672628656092,24.6116,9.9406,9.9354,20.0]
[1672628656725,24.6116,9.9406,9.9355,30.0]
[1672628660328,75.54,9.9455,9.9355,30.0]
[1672628660536,75.56,9.9436,9.9356,154.12217023]
[1672628660747,100.3886,9.9459,9.9356,154.12217023]
[1672628660948,75.54,9.9461,9.9358,30.0]
[1672628661371,96.08735817,9.9456,9.9359,337.36215891]
[1672628661807,96.08735817,9.9456,9.936,203.67685891]
[1672628662125,96.08735817,9.9456,9.9361,203.67685891]
[1672628662322,96.08735817,9.9456,9.9362,20.0]
[1672628662526,96.08735817,9.9456,9.9363,30.0]
[1672628662743,30.0,9.9455,9.9364,20.0]
[1672628662942,30.0,9.9455,9.9365,30.0]
[1672628663147,96.08735817,9.9456,9.9367,30.0]
[1672628663366,75.53,9.9463,9.9368,20.0]
[1672628663574,96.08735817,9.9455,9.9369,30.0]
[1672628663792,96.08735817,9.9455,9.937,20.0]
[1672628664108,96.08735817,9.9455,9.9371,30.0]
[1672628664309,96.08735817,9.9455,9.9372,20.0]
[1672628664540,96.08735817,9.9455,9.9373,30.0]
[1672628664725,96.08735817,9.9455,9.9373,86.34641914]
[1672628664932,96.08735817,9.9455,9.9375,30.0]
[1672628665363,96.08735817,9.9455,9.9377,30.0]
[1672628665695,96.08735817,9.9455,9.9379,30.0]
[1672628665902,96.08735817,9.9455,9.938,20.0]
[1672628666111,96.08735817,9.9455,9.938,76.34641914]
[1672628666319,96.08735817,9.9455,9.9381,56.34641914]
[1672628666510,96.08735817,9.9455,9.9382,30.0]
[1672628667037,96.08735817,9.9455,9.9384,30.0]
[1672628667250,96.08735817,9.9455,9.9386,30.0]
[1672628667670,96.08735817,9.9455,9.9388,30.0]
[1672628667881,96.08735817,9.9455,9.9389,20.0]
[1672628669131,96.08735817,9.9455,9.939,30.0]
[1672628669463,96.08735817,9.9455,9.9391,20.0]
[1672628669665,96.08735817,9.9455,9.9389,20.0]
[1672628670103,96.08735817,9.9455,9.939,30.0]
[1672628670293,96.08735817,9.9455,9.9391,20.0]
[1672628670503,95.58735817,9.9455,9.9391,20.0]
[1672628671231,95.58735817,9.9455,9.9392,30.0]
[1672628671879,95.58735817,9.9455,9.9393,20.0]
[1672628673884,75.54,9.9454,9.939,30.0]
[1672628674191,75.54,9.9454,9.9391,20.0]
[1672628674511,95.58735817,9.9454,9.9393,30.0]
[1672628674930,95.58735817,9.9454,9.9395,30.0]
[1672628675354,95.58735817,9.9454,9.9397,30.0]
[1672628675873,95.58735817,9.9454,9.9398,20.0]
[1672628676820,95.58735817,9.9454,9.9399,45.80730786]
[1672628677231,95.58735817,9.9454,9.94,86.36784213]
[1672628677440,95.58735817,9.9454,9.94,102.17514999]
[1672628677643,95.58735817,9.9454,9.9402,30.0]
[1672628677855,95.58735817,9.9454,9.9403,20.0]
[1672628678066,95.58735817,9.9454,9.9404,30.0]
[1672628678293,95.58735817,9.9454,9.9406,30.0]
[1672628678487,95.58735817,9.9454,9.9407,20.0]
[1672628678699,95.58735817,9.9454,9.9408,30.0]
[1672628678903,95.58735817,9.9454,9.941,30.0]
[1672628679117,95.58735817,9.9454,9.9412,30.0]
[1672628679339,95.58735817,9.9454,9.9413,20.0]
[1672628679560,95.58735817,9.9454,9.9414,30.0]
[1672628679754,95.58735817,9.9454,9.9416,30.0]
[1672628680070,95.58735817,9.9454,9.9415,20.0]
[1672628680283,95.58735817,9.9454,9.9413,20.0]
[1672628680496,95.58735817,9.9454,9.9411,20.0]
[1672628681862,95.58735817,9.9454,9.9409,20.0]
[1672628682080,95.58735817,9.9454,9.9412,30.0]
[1672628682271,95.58735817,9.9454,9.9413,20.0]
[1672628682489,95.58735817,9.9454,9.9414,30.0]
[1672628682799,95.58735817,9.9454,9.9415,20.0]
[1672628683004,95.58735817,9.9454,9.9416,30.0]
[1672628683452,95.58735817,9.9454,9.9417,20.0]
[1672628683633,95.58735817,9.9454,9.9418,30.0]
[1672628683844,95.58735817,9.9454,9.9419,20.0]
[1672628684499,95.58735817,9.9454,9.942,30.0]
[1672628684898,95.58735817,9.9454,9.9421,20.0]
[1672628688260,95.58735817,9.9454,9.9417,20.0]
[1672628688591,95.58735817,9.9454,9.9418,30.0]
[1672628688793,95.58735817,9.9454,9.9419,20.0]
[1672628689203,95.58735817,9.9454,9.942,30.0]
[1672628689409,95.58735817,9.9454,9.9421,20.0]
[1672628690883,95.58735817,9.9454,9.942,20.0]
[1672628699301,95.58735817,9.9454,9.9421,30.0]
[1672628699622,95.58735817,9.9454,9.9422,20.0]
[1672628699832,95.58735817,9.9454,9.9421,30.0]
[1672628700042,95.58735817,9.9454,9.9422,20.0]
[1672628700792,95.58735817,9.9454,9.9421,20.0]
[1672628704756,95.58735817,9.9454,9.9421,86.36784213]
[1672628708141,95.58735817,9.9454,9.9422,45.80730786]
[1672628708335,95.58735817,9.9454,9.9424,30.0]
[1672628708541,95.58735817,9.9454,9.9423,20.0]
[1672628708542,95.58735817,9.9454,9.9425,20.0]
[1672628709383,95.58735817,9.9454,9.9424,20.0]
[1672628711721,30.0,9.9453,9.9424,20.0]
[1672628711948,30.0,9.9453,9.9386,66.36784213]
[1672628712137,30.0,9.9453,9.9387,20.0]
[1672628712347,30.0,9.9453,9.9387,76.34362786]
[1672628712557,30.0,9.9453,9.9388,56.34362786]
[1672628712783,30.0,9.9453,9.9389,20.0]
[1672628712981,30.0,9.9453,9.9389,86.36784213]
[1672628713184,30.0,9.9453,9.939,122.71146999]
[1672628713393,30.0,9.9453,9.9391,20.0]
[1672628713607,30.0,9.9453,9.9391,142.71146999]
[1672628713826,241.31369079,9.9453,9.9392,56.34362786]
[1672628714045,241.31369079,9.9453,9.9393,20.0]
[1672628714446,241.31369079,9.9453,9.9393,76.34362786]
[1672628732852,241.31369079,9.9453,9.9394,15.02679135]
[1672628733064,241.31369079,9.9453,9.9395,20.0]
[1672628733286,211.31369079,9.9453,9.9395,20.0]
[1672628736542,211.31369079,9.9453,9.9396,30.0]
[1672628736735,211.31369079,9.9453,9.9401,30.0]
[1672628737157,211.31369079,9.9453,9.9402,142.71146999]
[1672628737366,211.31369079,9.9453,9.9403,30.0]
[1672628737577,211.31369079,9.9453,9.9403,152.71146999]
[1672628737808,211.31369079,9.9453,9.9404,142.71146999]
[1672628737996,211.31369079,9.9453,9.9405,30.0]
[1672628738211,211.31369079,9.9453,9.9406,20.0]
[1672628740752,211.31369079,9.9453,9.9407,15.00832474]
[1672628740950,211.31369079,9.9453,9.9408,20.0]
[1672628744977,211.31369079,9.9453,9.9409,15.00548415]
[1672628745370,211.31369079,9.9453,9.941,20.0]
[1672628745803,30.0,9.9452,9.941,20.0]
[1672628746204,75.54,9.9451,9.941,20.0]
[1672628746422,30.0,9.945,9.941,20.0]
[1672628746628,30.0,9.9448,9.941,20.0]
[1672628746962,30.0,9.9446,9.941,20.0]
[1672628747569,125.58735817,9.9446,9.941,20.0]
[1672628748748,125.58735817,9.9446,9.9411,14.99537544]
[1672628749172,125.58735817,9.9446,9.9412,20.0]
[1672628750726,95.58735817,9.9446,9.9412,20.0]
[1672628752935,95.58735817,9.9446,9.9413,14.99253508]
[1672628753368,95.58735817,9.9446,9.9414,20.0]
[1672628753564,30.0,9.9445,9.9414,20.0]
[1672628754315,30.0,9.9444,9.9414,20.0]
[1672628754527,115.72633262,9.9448,9.9414,20.0]
[1672628754743,95.58735817,9.9444,9.9414,20.0]
[1672628755701,30.0,9.9443,9.9414,20.0]
[1672628756025,95.58735817,9.9444,9.9414,20.0]
[1672628756333,95.58735817,9.9443,9.9414,20.0]
[1672628756737,95.58735817,9.9443,9.9415,14.98969483]
[1672628757168,95.58735817,9.9443,9.9416,20.0]
[1672628760943,95.58735817,9.9443,9.9417,14.9868547]
[1672628761390,95.58735817,9.9443,9.9418,20.0]
[1672628762126,30.0,9.9442,9.9418,20.0]
[1672628762314,95.58735817,9.9443,9.9418,20.0]
[1672628764860,95.58735817,9.9443,9.9419,14.98401468]
[1672628765370,95.58735817,9.9443,9.942,20.0]
[1672628768967,95.58735817,9.9443,9.9421,14.98117478]
[1672628769364,95.58735817,9.9443,9.9422,20.0]
[1672628769587,30.0,9.9442,9.9422,20.0]
[1672628770425,125.58735817,9.9442,9.9422,20.0]
[1672628770635,95.58735817,9.9442,9.9422,20.0]
[1672628770839,30.0,9.9441,9.9422,20.0]
[1672628771466,125.58735817,9.9441,9.9422,20.0]
[1672628772851,125.58735817,9.9441,9.9423,14.97833499]
[1672628773257,125.58735817,9.9441,9.9424,20.0]
[1672628776934,125.58735817,9.9441,9.9425,14.97549532]
[1672628777377,125.58735817,9.9441,9.9426,20.0]
[1672628778639,95.58735817,9.9441,9.9426,20.0]
[1672628780847,95.58735817,9.9441,9.9427,14.97265576]
[1672628781255,95.58735817,9.9441,9.9428,20.0]
[1672628784847,95.58735817,9.9441,9.9429,14.96981631]
[1672628785365,95.58735817,9.9441,9.943,20.0]
[1672628787361,30.0,9.944,9.943,20.0]
[1672628787764,30.0,9.9447,9.943,20.0]
[1672628787980,30.0,9.9439,9.943,20.0]
[1672628788812,125.58735817,9.9439,9.9431,14.96697698]
[1672628789255,125.58735817,9.9439,9.9432,20.0]
[1672628793040,125.58735817,9.9439,9.9433,14.96413776]
[1672628793254,125.58735817,9.9439,9.9434,20.0]
[1672628793787,30.0,9.9447,9.9434,20.0]
[1672628793991,30.0,9.9447,9.9433,14.96413776]
[1672628794726,105.58735817,9.9447,9.9433,14.96413776]
[1672628794941,105.58735817,9.9447,9.9405,56.34362786]
[1672628795248,105.58735817,9.9447,9.9406,20.0]
[1672628795457,105.58735817,9.9447,9.9394,20.0]
[1672628796704,105.58735817,9.9447,9.9395,15.01810243]
[1672628796916,105.58735817,9.9447,9.9396,20.0]
[1672628800720,105.58735817,9.9447,9.9397,15.01526116]
[1672628801352,105.58735817,9.9447,9.9398,20.0]
[1672628804822,105.58735817,9.9447,9.9399,15.01242]
[1672628805220,105.58735817,9.9447,9.94,20.0]
[1672628808903,105.58735817,9.9447,9.9401,15.00957895]
[1672628809328,105.58735817,9.9447,9.9402,20.0]
[1672628812800,105.58735817,9.9447,9.9403,15.00673802]
[1672628813334,105.58735817,9.9447,9.9404,20.0]
[1672628815553,30.0,9.9446,9.9404,20.0]
[1672628816280,105.58735817,9.9446,9.9404,20.0]
[1672628816887,105.58735817,9.9446,9.9405,15.0038972]
[1672628817327,75.58735817,9.9446,9.9407,30.0]
[1672628817866,75.58735817,9.9446,9.9408,20.0]
[1672628818908,75.58735817,9.9446,9.9406,20.0]
[1672628820058,75.58735817,9.9446,9.9407,30.0]
[1672628820267,75.58735817,9.9446,9.9408,20.0]
[1672628820799,75.58735817,9.9446,9.9408,14.99963619]
[1672628821015,75.58735817,9.9446,9.9409,20.0]
[1672628824890,75.58735817,9.9446,9.9411,30.0]
[1672628825423,75.58735817,9.9446,9.9412,20.0]
[1672628826466,75.58735817,9.9446,9.9411,20.0]
[1672628826885,75.58735817,9.9446,9.9412,30.0]
[1672628827088,75.58735817,9.9446,9.9413,20.0]
[1672628828767,75.58735817,9.9446,9.9411,20.0]
[1672628828972,75.58735817,9.9446,9.9414,14.99111494]
[1672628829185,75.58735817,9.9446,9.9415,20.0]
[1672628832875,75.58735817,9.9446,9.9416,14.98827475]
[1672628833291,75.58735817,9.9446,9.9417,20.0]
[1672628834878,75.58735817,9.9446,9.9418,30.0]
[1672628835095,75.58735817,9.9446,9.9419,20.0]
[1672628836751,75.58735817,9.9446,9.942,14.98259472]
[1672628837182,75.58735817,9.9446,9.9421,20.0]
[1672628840958,75.58735817,9.9446,9.9422,14.97975487]
[1672628841379,75.58735817,9.9446,9.9423,20.0]
[1672628844749,75.58735817,9.9446,9.9424,14.97691514]
[1672628845287,75.58735817,9.9446,9.9425,20.0]
[1672628848847,75.58735817,9.9446,9.9426,14.97407553]
[1672628849379,75.58735817,9.9446,9.9427,20.0]
[1672628853048,75.58735817,9.9446,9.9428,14.97123602]
[1672628853276,75.58735817,9.9446,9.9429,20.0]
[1672628856833,75.58735817,9.9446,9.943,14.96839663]
[1672628857250,75.58735817,9.9446,9.9431,20.0]
[1672628860929,75.58735817,9.9446,9.9432,14.96555736]
[1672628861369,75.58735817,9.9446,9.9433,20.0]
[1672628864943,75.58735817,9.9446,9.9434,14.9627182]
[1672628865353,48.4101,9.9477,9.9435,20.0]
[1672628865562,48.4101,9.9477,9.9435,5.0372818]
[1672628865774,30.0,9.9476,9.9406,30.0]
[1672628866114,30.0,9.9476,9.9408,30.0]
[1672628866499,30.0,9.9476,9.9409,56.34362786]
[1672628866929,30.0,9.9476,9.941,30.0]
[1672628867142,48.4101,9.9477,9.941,30.0]
[1672628867358,48.4101,9.9477,9.9412,30.0]
[1672628867674,30.0,9.9476,9.9413,76.34362786]
[1672628867989,48.4101,9.9477,9.9414,86.34362786]
[1672628868403,48.4101,9.9477,9.9415,76.34362786]
[1672628868933,30.0,9.9476,9.9416,56.34362786]
[1672628869338,30.0,9.9476,9.9417,20.0]
[1672628869665,30.0,9.9476,9.9418,56.34362786]
[1672628869986,30.0,9.9476,9.9419,20.0]
[1672628872601,48.4101,9.9477,9.9419,20.0]
[1672628872806,48.4101,9.9477,9.942,13.73570154]
[1672628873233,48.4101,9.9477,9.9421,20.0]
[1672628873444,30.0,9.9476,9.9421,20.0]
[1672628876904,30.0,9.9476,9.9422,13.73286169]
[1672628877332,30.0,9.9476,9.9423,20.0]
[1672628880893,30.0,9.9476,9.9424,13.73002196]
[1672628881336,30.0,9.9476,9.9425,20.0]
[1672628884781,30.0,9.9476,9.9426,13.72718234]
[1672628885418,30.0,9.9476,9.9427,20.0]
[1672628888914,30.0,9.9474,9.9427,20.0]
[1672628889223,30.0,9.9472,9.9428,13.72434284]
[1672628889630,30.0,9.9472,9.9429,20.0]
[1672628892793,30.0,9.9476,9.9429,20.0]
[1672628892998,30.0,9.9476,9.943,13.72150345]
[1672628893325,30.0,9.9476,9.9431,20.0]
[1672628893946,30.0,9.9476,9.9431,33.7200838]
[1672628900062,48.4101,9.9477,9.9431,33.7200838]
[1672628900259,30.0,9.9476,9.9431,33.7200838]
[1672628901635,30.0,9.9474,9.9431,33.7200838]
[1672628901845,30.0,9.9472,9.9431,33.7200838]
[1672628911422,186.35097259,9.9472,9.9431,33.7200838]
[1672628913001,30.0,9.947,9.9431,33.7200838]
[1672628913203,30.0,9.9468,9.9431,33.7200838]
[1672628913923,186.35097259,9.9468,9.9431,33.7200838]
[1672628916873,261.88097259,9.9468,9.9431,33.7200838]
[1672628924338,261.88097259,9.9468,9.9431,8.38e-05]
[1672628924571,30.0,9.9466,9.9431,8.38e-05]
[1672628924770,30.0,9.9464,9.9431,8.38e-05]
[1672628924971,75.53,9.9463,9.9347,11.45068572]
[1672628925186,30.0,9.9462,9.9347,11.45068572]
[1672628925409,30.0,9.946,9.9347,11.45068572]
[1672628925627,75.54,9.9459,9.9347,11.45068572]
[1672628925817,30.0,9.9458,9.9347,11.45068572]
[1672628926029,30.0,9.9456,9.9347,11.45068572]
[1672628926360,30.0,9.9454,9.9348,20.0]
[1672628926560,75.54,9.9453,9.9348,20.0]
[1672628926783,30.0,9.9452,9.9348,20.0]
[1672628926973,30.0,9.945,9.9348,20.0]
[1672628927188,30.0,9.9448,9.9348,20.0]
[1672628927409,75.55,9.9447,9.9348,20.0]
[1672628927622,30.0,9.9446,9.9348,20.0]
[1672628927835,30.0,9.9444,9.9348,20.0]
[1672628928035,30.0,9.9442,9.9349,11.56761207]
[1672628928244,75.55,9.9441,9.935,20.0]
[1672628928453,30.0,9.944,9.935,20.0]
[1672628928654,30.0,9.9438,9.935,20.0]
[1672628928864,30.0,9.9436,9.935,20.0]
[1672628929076,75.56,9.9435,9.935,20.0]
[1672628929299,30.0,9.9434,9.935,20.0]
[1672628929511,30.0,9.9432,9.935,20.0]
[1672628929703,75.56,9.9431,9.935,20.0]
[1672628929919,30.0,9.943,9.935,20.0]
[1672628930128,75.56,9.9429,9.935,20.0]
[1672628930343,30.0,9.9428,9.935,20.0]
[1672628930563,75.56,9.9427,9.935,20.0]
[1672628930876,30.0,9.9426,9.935,20.0]
[1672628931191,30.0,9.9424,9.935,20.0]
[1672628931387,30.0,9.9422,9.935,20.0]
[1672628931598,75.57,9.9421,9.935,20.0]
[1672628931803,30.0,9.942,9.9351,11.56476817]
[1672628932333,70.62463997,9.942,9.9352,20.0]
[1672628933919,40.62463997,9.942,9.9352,20.0]
[1672628934332,30.0,9.9419,9.9352,20.0]
[1672628934659,70.62463997,9.9419,9.9352,20.0]
[1672628935496,40.62463997,9.9419,9.9352,20.0]
[1672628935916,40.62463997,9.9419,9.9353,11.56192437]
[1672628936245,40.62463997,9.9419,9.9354,20.0]
[1672628936432,30.0,9.9418,9.9354,20.0]
[1672628937065,70.62463997,9.9418,9.9354,20.0]
[1672628940032,70.62463997,9.9418,9.9355,11.5590807]
[1672628942031,40.62463997,9.9418,9.9355,11.5590807]
[1672628942424,30.0,9.9417,9.9355,11.5590807]
[1672628943073,70.62463997,9.9417,9.9343,66.36784213]
[1672628943309,70.62463997,9.9417,9.9344,20.0]
[1672628943893,70.62463997,9.9417,9.9345,11.57330023]
[1672628944106,70.62463997,9.9417,9.9346,20.0]
[1672628944754,30.0,9.9416,9.9346,20.0]
[1672628945574,70.62463997,9.9416,9.9346,20.0]
[1672628947921,70.62463997,9.9416,9.9347,11.57045609]
[1672628948333,70.62463997,9.9416,9.9348,20.0]
[1672628949695,30.0,9.9414,9.9348,20.0]
[1672628949902,75.57,9.9413,9.9348,20.0]
[1672628950115,30.0,9.9412,9.9348,20.0]
[1672628950327,30.0,9.941,9.9348,20.0]
[1672628950532,75.58,9.9409,9.9348,20.0]
[1672628950738,30.0,9.9408,9.9348,20.0]
[1672628951279,30.0,9.9406,9.9348,20.0]
[1672628951921,30.0,9.9406,9.9349,11.56761207]
[1672628952334,30.0,9.9406,9.935,20.0]
[1672628955686,30.0,9.9404,9.935,20.0]
[1672628955895,30.0,9.9402,9.9351,11.56476817]
[1672628956422,30.0,9.9402,9.9352,20.0]
[1672628956631,30.0,9.94,9.9352,20.0]
[1672628960007,30.0,9.94,9.9353,11.56192437]
[1672628964749,30.0,9.9398,9.9353,11.56192437]
[1672628964951,75.59,9.9397,9.9353,11.56192437]
[1672628965159,30.0,9.9398,9.9353,11.56192437]
[1672628968217,98.71820348,9.9398,9.9353,11.56192437]
[1672628968836,30.0,9.9396,9.9353,11.56192437]
[1672628969048,30.0,9.9394,9.9353,11.56192437]
[1672628969367,30.0,9.9392,9.9353,11.56192437]
[1672628971062,30.0,9.939,9.9353,11.56192437]
[1672628975258,30.0,9.9388,9.9353,11.56192437]
[1672628975484,30.0,9.9386,9.9353,11.56192437]
[1672628975797,30.0,9.9384,9.9353,11.56192437]
[1672628975993,75.6,9.9383,9.9353,11.56192437]
[1672628976210,30.0,9.9382,9.9353,11.56192437]
[1672628976419,30.0,9.938,9.9353,11.56192437]
[1672628976641,30.0,9.9378,9.9353,11.56192437]
[1672628976836,75.6,9.9377,9.9353,11.56192437]
[1672628977042,30.0,9.9376,9.9353,11.56192437]
[1672628977253,30.0,9.9374,9.9353,11.56192437]
[1672628977582,30.0,9.9372,9.9322,23.1357]
[1672628977791,30.0,9.937,9.9322,23.1357]
[1672628977999,30.0,9.9368,9.9322,23.1357]
[1672628978215,75.61,9.9367,9.9322,23.1357]
[1672628978419,30.0,9.9366,9.9312,23.5401]
[1672628978741,30.0,9.9364,9.9312,23.5401]
[1672628978952,30.0,9.9362,9.9312,23.5401]
[1672628979348,30.0,9.9362,9.9313,20.0]
[1672628979563,111.44017032,9.9362,9.9313,20.0]
[1672628982213,30.0,9.936,9.9313,20.0]
[1672628982405,30.0,9.9358,9.9313,20.0]
[1672628983033,73.78705052,9.9358,9.9313,20.0]
[1672628983249,111.44017032,9.9358,9.9302,20.0]
[1672628984510,30.0,9.9356,9.9302,20.0]
[1672628985253,111.44017032,9.9356,9.9302,20.0]
[1672628991254,30.0,9.9354,9.9302,20.0]
[1672628991973,111.44017032,9.9354,9.9302,20.0]
[1672628996401,30.0,9.9352,9.9302,20.0]
[1672628997130,111.44017032,9.9352,9.9302,20.0]
[1672629002182,30.0,9.935,9.9302,20.0]
[1672629002616,75.62,9.9351,9.9302,20.0]
[1672629002819,81.44017032,9.935,9.9302,20.0]
[1672629013126,81.44017032,9.935,9.9303,30.0]
[1672629013339,81.44017032,9.935,9.9304,20.0]
[1672629013775,81.44017032,9.935,9.9302,20.0]
[1672629014825,81.44017032,9.935,9.9303,30.0]
[1672629015038,81.44017032,9.935,9.9304,20.0]
[1672629016397,81.44017032,9.935,9.9305,30.0]
[1672629016606,81.44017032,9.935,9.9306,20.0]
[1672629018713,81.44017032,9.935,9.9307,30.0]
[1672629018919,81.44017032,9.935,9.9308,20.0]
[1672629019240,81.44017032,9.935,9.9309,30.0]
[1672629019644,81.44017032,9.935,9.9311,30.0]
[1672629019856,81.44017032,9.935,9.9312,20.0]
[1672629024819,81.44017032,9.935,9.931,20.0]
[1672629025872,81.44017032,9.935,9.9308,20.0]
[1672629031246,81.44017032,9.935,9.9224,164.79006764]
[1672629031427,81.44017032,9.935,9.9306,20.0]
[1672629032293,81.44017032,9.935,9.9302,20.0]
[1672629032902,81.44017032,9.935,9.9303,30.0]
[1672629033109,81.44017032,9.935,9.9304,20.0]
[1672629033559,81.44017032,9.935,9.9305,30.0]
[1672629033763,81.44017032,9.935,9.9307,30.0]
[1672629034391,81.44017032,9.935,9.9308,20.0]
[1672629037031,81.44017032,9.935,9.9309,13.66901257]
[1672629037220,81.44017032,9.935,9.931,50.0]
[1672629037656,81.44017032,9.935,9.931,20.0]
[1672629040907,81.44017032,9.935,9.9311,13.66610579]
[1672629041443,81.44017032,9.935,9.9312,20.0]